bitfinex/quotes_BTCUSD_20240827
["timestamp","ask_amount","ask_price","bid_price","bid_amount"]
[1724761690263,0.00171259,62456.0,62455.0,2.3337361]
[1724761690510,0.00171259,62456.0,62455.0,2.0135061]
[1724761691706,0.00171259,62456.0,62455.0,1.96906939]
[1724761691961,0.00171259,62456.0,62455.0,2.0135063]
[1724761692201,0.00171259,62456.0,62455.0,1.77014692]
[1724761694565,0.00171259,62456.0,62455.0,1.76914692]
[1724761694787,0.00171259,62456.0,62455.0,1.44991844]
[1724761694788,0.06581259,62456.0,62455.0,1.44991844]
[1724761695009,0.06581259,62456.0,62455.0,1.44891844]
[1724761696805,0.06581259,62456.0,62455.0,1.00568844]
[1724761697055,0.14501259,62456.0,62455.0,0.68545844]
[1724761697261,0.17010046,62456.0,62455.0,0.188938]
[1724761697515,0.17010046,62456.0,62455.0,0.509168]
[1724761697730,0.16910046,62456.0,62455.0,0.495168]
[1724761698241,0.16910046,62456.0,62455.0,0.509168]
[1724761698687,0.16910046,62456.0,62455.0,0.518168]
[1724761699102,0.16910046,62456.0,62455.0,0.530168]
[1724761699335,0.16910046,62456.0,62455.0,0.516168]
[1724761699552,0.16910046,62456.0,62455.0,0.528168]
[1724761702766,0.16910046,62456.0,62455.0,0.848398]
[1724761703225,0.16910046,62456.0,62455.0,0.528168]
[1724761703668,0.16910046,62456.0,62455.0,0.848398]
[1724761703882,0.16910046,62456.0,62455.0,0.528168]
[1724761704096,0.16910046,62456.0,62455.0,0.848398]
[1724761707205,0.16910046,62456.0,62455.0,0.528168]
[1724761707911,0.16910046,62456.0,62455.0,0.848398]
[1724761708123,0.16910046,62456.0,62455.0,0.528168]
[1724761708392,0.16910046,62456.0,62455.0,0.024823]
[1724761709598,0.16910046,62456.0,62455.0,0.184938]
[1724761714207,0.16910046,62456.0,62455.0,0.024823]
[1724761714954,0.16910046,62456.0,62455.0,0.184938]
[1724761715218,0.16910046,62456.0,62455.0,0.024823]
[1724761715219,0.32921246,62456.0,62455.0,0.024823]
[1724761715448,0.32921246,62456.0,62455.0,0.02520779]
[1724761715449,0.96966246,62456.0,62455.0,0.02520779]
[1724761715667,0.96966246,62456.0,62455.0,0.024823]
[1724761716123,0.96966246,62456.0,62455.0,0.01320779]
[1724761716340,0.96966246,62456.0,62455.0,0.00120779]
[1724761716614,0.96966246,62456.0,62455.0,0.000823]
[1724761717082,0.96966246,62456.0,62455.0,0.00120779]
[1724761719127,0.64943746,62456.0,62455.0,0.000823]
[1724761720072,0.96966246,62456.0,62455.0,0.000823]
[1724761721495,0.96679555,62456.0,62455.0,0.000823]
[1724761721768,0.16623355,62456.0,62455.0,0.1798153]
[1724761721988,0.16623355,62456.0,62455.0,0.2028153]
[1724761722437,0.16623355,62456.0,62455.0,0.5230453]
[1724761723542,0.16623355,62456.0,62455.0,0.5270453]
[1724761723973,0.16623355,62456.0,62455.0,0.5320453]
[1724761726002,0.16623355,62456.0,62455.0,0.2118153]
[1724761727114,0.16623355,62456.0,62455.0,0.0517003]
[1724761727327,0.16623355,62456.0,62455.0,0.2118153]
[1724761727752,0.16623355,62456.0,62455.0,0.0517003]
[1724761728641,0.16713885,62456.0,62455.0,0.0517003]
[1724761729558,0.16713885,62456.0,62455.0,0.032823]
[1724761729559,0.32725085,62456.0,62455.0,0.032823]
[1724761729809,0.32725085,62456.0,62455.0,0.01020779]
[1724761729810,0.64747585,62456.0,62455.0,0.01020779]
[1724761730697,0.96770085,62456.0,62455.0,0.01020779]
[1724761731132,0.96770085,62456.0,62455.0,0.009823]
[1724761732239,0.96770085,62456.0,62455.0,0.01020779]
[1724761733128,0.96770085,62456.0,62455.0,0.009823]
[1724761733361,0.64747585,62456.0,62455.0,0.009823]
[1724761737698,0.64747585,62456.0,62455.0,0.0273001]
[1724761737914,0.64747585,62456.0,62455.0,0.009823]
[1724761739276,0.16713885,62456.0,62455.0,0.009823]
[1724761739540,0.02599317,62456.0,62455.0,0.513168]
[1724761741296,0.02599317,62456.0,62455.0,0.032823]
[1724761741553,0.64583017,62456.0,62455.0,0.01020779]
[1724761741786,0.96605517,62456.0,62455.0,0.01020779]
[1724761742010,1.01382204,62456.0,62455.0,0.01020779]
[1724761742698,0.96605517,62456.0,62455.0,0.01020779]
[1724761742912,0.96574307,62456.0,62455.0,0.01020779]
[1724761744737,0.64551807,62456.0,62455.0,0.009823]
[1724761744968,0.64551807,62456.0,62455.0,0.01020779]
[1724761746318,0.96574307,62456.0,62455.0,0.01020779]
[1724761746962,0.96574307,62456.0,62455.0,0.009823]
[1724761747462,0.96574307,62456.0,62455.0,0.01020779]
[1724761748564,1.01354269,62456.0,62455.0,0.01020779]
[1724761748787,1.01354269,62456.0,62455.0,0.009823]
[1724761749001,1.01354269,62456.0,62455.0,0.01020779]
[1724761749665,1.01354269,62456.0,62455.0,0.009823]
[1724761749887,1.01354269,62456.0,62455.0,0.01020779]
[1724761750571,1.03744251,62456.0,62455.0,0.01020779]
[1724761750796,1.03744251,62456.0,62455.0,0.009823]
[1724761751072,1.03744251,62456.0,62455.0,0.01020779]
[1724761751507,1.03744251,62456.0,62455.0,0.009823]
[1724761751723,1.03744251,62456.0,62455.0,0.01020779]
[1724761752608,0.96574307,62456.0,62455.0,0.009823]
[1724761753009,0.96574307,62456.0,62455.0,0.01020779]
[1724761757407,0.96574307,62456.0,62455.0,0.009823]
[1724761757632,0.96574307,62456.0,62455.0,0.01020779]
[1724761758085,0.96574307,62456.0,62455.0,0.009823]
[1724761758314,0.96574307,62456.0,62455.0,0.01020779]
[1724761759511,1.06134232,62456.0,62455.0,0.01020779]
[1724761762976,1.06137178,62456.0,62455.0,0.01020779]
[1724761764300,1.06137178,62456.0,62455.0,0.009823]
[1724761764939,1.38159678,62456.0,62455.0,0.009823]
[1724761765842,1.5765953,62456.0,62455.0,0.009823]
[1724761766063,1.79443086,62456.0,62455.0,0.009823]
[1724761766513,1.75098779,62456.0,62455.0,0.009823]
[1724761766736,1.91236125,62456.0,62455.0,0.004823]
[1724761767394,1.75098779,62456.0,62455.0,0.004823]
[1724761767666,1.75098779,62456.0,62455.0,0.000823]
[1724761767888,1.90990588,62456.0,62455.0,0.000823]
[1724761768772,1.90990588,62456.0,62455.0,0.001823]
[1724761769931,1.91090588,62456.0,62455.0,0.002823]
[1724761773156,1.91252109,62456.0,62455.0,0.002823]
[1724761774300,1.91152109,62456.0,62455.0,0.002823]
[1724761774526,1.91090588,62456.0,62455.0,0.002823]
[1724761777660,2.05399173,62456.0,62455.0,0.002823]
[1724761779490,1.75198779,62456.0,62455.0,0.002823]
[1724761781296,1.76874615,62456.0,62455.0,0.002823]
[1724761781749,1.44852115,62456.0,62455.0,0.002823]
[1724761781965,1.56774093,62456.0,62455.0,0.002823]
[1724761782181,1.44852115,62456.0,62455.0,0.002823]
[1724761782405,1.54389635,62456.0,62455.0,0.002823]
[1724761782626,1.17887663,62456.0,62455.0,0.002823]
[1724761782860,0.62377643,62456.0,62455.0,0.002823]
[1724761783572,0.94300143,62456.0,62455.0,0.00220779]
[1724761783824,0.94300143,62456.0,62455.0,0.000823]
[1724761784060,0.94400143,62456.0,62455.0,0.00220779]
[1724761784294,0.99169279,62456.0,62455.0,0.00220779]
[1724761784537,0.99569279,62456.0,62455.0,0.002823]
[1724761785945,0.99569279,62456.0,62455.0,0.00320779]
[1724761786414,0.99569279,62456.0,62455.0,0.002823]
[1724761786855,0.9957104,62456.0,62455.0,0.002823]
[1724761788484,0.94800143,62456.0,62455.0,0.002823]
[1724761788716,0.94800143,62456.0,62455.0,0.00320779]
[1724761788940,1.02390143,62456.0,62455.0,0.002823]
[1724761789164,1.08960143,62456.0,62455.0,0.00320779]
[1724761789574,1.08960143,62456.0,62455.0,0.002823]
[1724761790222,1.08960143,62456.0,62455.0,0.00320779]
[1724761790459,1.08460143,62456.0,62455.0,0.00120779]
[1724761790721,1.08960143,62456.0,62455.0,0.00220779]
[1724761791146,1.08960143,62456.0,62455.0,0.001823]
[1724761791368,1.08960143,62456.0,62455.0,0.00220779]
[1724761791585,1.01370143,62456.0,62455.0,0.001823]
[1724761792332,1.08527633,62456.0,62455.0,0.001823]
[1724761793649,1.08527633,62456.0,62455.0,0.00220779]
[1724761794081,1.08527633,62456.0,62455.0,0.001823]
[1724761795819,1.68661414,62456.0,62455.0,0.001823]
[1724761796494,1.68663257,62456.0,62455.0,0.001823]
[1724761796998,0.69936976,62456.0,62455.0,0.081523]
[1724761797863,1.01859476,62456.0,62455.0,0.081523]
[1724761798088,0.69436976,62456.0,62455.0,0.080523]
[1724761798314,0.69936976,62456.0,62455.0,0.080523]
[1724761798958,1.01959476,62456.0,62455.0,0.000823]
[1724761799188,0.69936976,62456.0,62455.0,0.000823]
[1724761799895,1.01959476,62456.0,62455.0,0.000823]
[1724761800631,1.61913924,62456.0,62455.0,0.000823]
[1724761800840,1.73846146,62456.0,62455.0,0.000823]
[1724761801511,1.61913924,62456.0,62455.0,0.000823]
[1724761802183,1.76235151,62456.0,62455.0,0.000823]
[1724761802386,1.61913924,62456.0,62455.0,0.000823]
[1724761803127,1.46022115,62456.0,62455.0,0.000823]
[1724761803818,1.45922115,62456.0,62455.0,0.000823]
[1724761804064,1.45922115,62456.0,62455.0,0.001823]
[1724761804269,1.45822115,62456.0,62455.0,0.001823]
[1724761804792,1.46522115,62456.0,62455.0,0.002823]
[1724761805007,1.94436424,62456.0,62455.0,0.002823]
[1724761805212,2.1644242,62456.0,62455.0,0.002823]
[1724761805653,2.1654242,62456.0,62455.0,0.002823]
[1724761805876,2.5371992,62456.0,62455.0,0.001823]
[1724761806114,2.15822115,62456.0,62455.0,0.001823]
[1724761806353,2.16922115,62456.0,62455.0,0.002823]
[1724761806804,2.23653975,62456.0,62455.0,0.002823]
[1724761807028,2.55676475,62456.0,62455.0,0.002823]
[1724761807280,2.23353975,62456.0,62455.0,0.001823]
[1724761807506,2.54276475,62456.0,62455.0,0.000823]
[1724761807734,2.55476475,62456.0,62455.0,0.001823]
[1724761807958,2.56876475,62456.0,62455.0,0.001823]
[1724761808220,2.58837996,62456.0,62455.0,0.000823]
[1724761808440,2.60237996,62456.0,62455.0,0.001823]
[1724761808717,2.58837996,62456.0,62455.0,0.001823]
[1724761809140,2.58837996,62456.0,62455.0,0.000823]
[1724761809573,2.55676475,62456.0,62455.0,0.000823]
[1724761810264,2.55776475,62456.0,62455.0,0.000823]
[1724761810489,2.55676475,62456.0,62455.0,0.000823]
[1724761810710,2.56876475,62456.0,62455.0,0.001823]
[1724761810937,2.57037996,62456.0,62455.0,0.001823]
[1724761811526,2.76149006,62456.0,62455.0,0.001823]
[1724761811795,2.92060496,62456.0,62455.0,0.001823]
[1724761812019,3.14066492,62456.0,62455.0,0.001823]
[1724761812749,3.15571322,62456.0,62455.0,0.001823]
[1724761813190,3.14066492,62456.0,62455.0,0.001823]
[1724761813626,0.00161521,62451.0,62450.0,0.004]
[1724761813889,0.00161521,62451.0,62441.0,0.000823]
[1724761813890,0.36675996,62442.0,62441.0,0.000823]
[1724761814132,1.95468564,62442.0,62441.0,0.000823]
[1724761814568,1.75138404,62442.0,62441.0,0.000823]
[1724761814782,2.75340087,62442.0,62441.0,0.000823]
[1724761814996,2.77850441,62442.0,62441.0,0.000823]
[1724761815449,2.63540567,62442.0,62441.0,0.000823]
[1724761815673,2.07850441,62442.0,62441.0,0.000823]
[1724761815895,2.08950441,62442.0,62441.0,0.000823]
[1724761816116,1.94640567,62442.0,62441.0,0.000823]
[1724761817697,1.95640567,62442.0,62441.0,0.000823]
[1724761818148,2.79950441,62442.0,62441.0,0.000823]
[1724761818573,2.65640567,62442.0,62441.0,0.000823]
[1724761819060,2.79950441,62442.0,62441.0,0.000823]
[1724761819491,2.65640567,62442.0,62441.0,0.000823]
[1724761821974,2.65740567,62442.0,62441.0,0.000823]
[1724761822219,3.02117958,62442.0,62441.0,0.000823]
[1724761822436,2.97831788,62442.0,62441.0,0.000823]
[1724761822696,3.51867484,62442.0,62441.0,0.000823]
[1724761822935,1.91072921,62432.0,62431.0,0.001223]
[1724761823198,2.27802009,62432.0,62431.0,0.001223]
[1724761823688,2.43872408,62432.0,62431.0,0.001223]
[1724761823900,1.95767209,62432.0,62431.0,0.001223]
[1724761824167,1.55841424,62432.0,62431.0,0.001223]
[1724761824381,1.62901084,62432.0,62431.0,0.001223]
[1724761824601,1.83041945,62432.0,62431.0,0.001223]
[1724761825034,1.51007145,62432.0,62431.0,0.001223]
[1724761825242,1.62901258,62432.0,62431.0,0.001223]
[1724761825480,1.94936058,62432.0,62431.0,0.001223]
[1724761825705,1.65697141,62432.0,62431.0,0.001223]
[1724761825945,1.53807145,62432.0,62431.0,0.001223]
[1724761826167,1.85841945,62432.0,62431.0,0.001223]
[1724761826614,1.95351307,62432.0,62431.0,0.001223]
[1724761826885,1.95351336,62432.0,62431.0,0.001223]
[1724761827364,1.64716536,62432.0,62431.0,0.001223]
[1724761827607,1.55207145,62432.0,62431.0,0.001223]
[1724761827840,2.57241945,62432.0,62431.0,0.001223]
[1724761828538,2.6674897,62432.0,62431.0,0.001223]
[1724761828786,1.54287,62432.0,62431.0,0.001223]
[1724761829233,0.84287,62432.0,62431.0,0.001223]
[1724761829490,0.84287,62432.0,62431.0,0.082523]
[1724761829718,0.522522,62432.0,62431.0,0.135123]
[1724761829943,0.042,62432.0,62431.0,0.3088113]
[1724761830161,0.042,62432.0,62431.0,0.638652]
[1724761830664,0.014,62432.0,62431.0,0.638652]
[1724761830886,0.320297,62442.0,62436.0,0.0526]
[1724761831105,0.320297,62442.0,62437.0,0.02]
[1724761831106,0.160157,62439.0,62437.0,0.02]
[1724761831533,0.160155,62440.0,62438.0,0.0526]
[1724761831755,0.160156,62439.0,62438.0,0.0526]
[1724761832213,0.33704036,62445.0,62438.0,0.0232765]
[1724761832439,0.320288,62444.0,62438.0,0.0526]
[1724761832647,0.160149,62442.0,62438.0,0.0526]
[1724761832867,0.171149,62442.0,62438.0,0.0526]
[1724761833097,0.171149,62442.0,62439.0,0.0526]
[1724761833098,0.160152,62441.0,62439.0,0.0526]
[1724761833330,0.011,62442.0,62439.0,0.0526]
[1724761833552,0.160153,62441.0,62439.0,0.0526]
[1724761833988,0.160151,62441.0,62440.0,0.0729]
[1724761834205,0.320288,62444.0,62440.0,0.0729]
[1724761834505,0.01675836,62445.0,62441.0,0.0526]
[1724761834747,0.01675836,62445.0,62443.0,0.160144]
[1724761834748,0.03075836,62445.0,62443.0,0.160144]
[1724761834966,0.03075836,62445.0,62444.0,0.235743]
[1724761835180,0.03075836,62445.0,62444.0,0.0756]
[1724761835607,0.01675836,62445.0,62444.0,0.0756]
[1724761835823,0.02375836,62445.0,62444.0,0.0756]
[1724761836033,0.03075836,62445.0,62444.0,0.0756]
[1724761836250,0.03075836,62445.0,62444.0,0.556029]
[1724761836470,0.014,62445.0,62444.0,0.876315]
[1724761837124,0.014,62445.0,62444.0,1.11703309]
[1724761837340,0.007,62445.0,62444.0,1.11703309]
[1724761837556,0.007,62445.0,62444.0,1.44031909]
[1724761837980,0.0009053,62450.0,62449.0,0.610991]
[1724761838225,0.0009053,62450.0,62449.0,0.633991]
[1724761838449,0.0009053,62450.0,62449.0,1.43343109]
[1724761838667,0.0009053,62450.0,62449.0,1.43443109]
[1724761839990,0.0009053,62450.0,62449.0,1.75469209]
[1724761840208,0.0009053,62456.0,62449.0,1.75469209]
[1724761840209,0.0009053,62456.0,62455.0,1.10003496]
[1724761840424,0.0009053,62456.0,62455.0,1.60318305]
[1724761840878,0.0009053,62463.0,62458.0,0.801537]
[1724761841090,0.0009053,62463.0,62458.0,1.68988509]
[1724761841523,0.0009053,62463.0,62462.0,1.67623296]
[1724761841743,0.0009053,62463.0,62462.0,1.85815105]
[1724761842250,0.0009053,62463.0,62462.0,1.95815105]
[1724761842683,0.0009053,62472.0,62470.0,1.42099496]
[1724761842897,0.0009053,62472.0,62470.0,1.60291305]
[1724761843776,0.0009053,62472.0,62470.0,1.65271305]
[1724761843991,0.0009053,62472.0,62470.0,1.11150009]
[1724761844427,0.0009053,62472.0,62470.0,0.609429]
[1724761844883,0.1609793,62471.0,62465.0,0.320178]
[1724761845093,0.1609793,62471.0,62464.0,0.369982]
[1724761845094,0.0009053,62471.0,62466.0,0.0828]
[1724761845297,0.0009053,62471.0,62468.0,0.16008]
[1724761845511,0.0009053,62471.0,62469.0,0.160079]
[1724761845725,0.0019053,62471.0,62470.0,0.014]
[1724761845934,0.0029053,62471.0,62470.0,0.180076]
[1724761846153,0.0019053,62471.0,62470.0,0.166076]
[1724761846359,0.0019053,62471.0,62467.0,0.320166]
[1724761846570,0.0029053,62471.0,62470.0,0.160076]
[1724761846775,0.0029053,62471.0,62470.0,0.183076]
[1724761847011,0.0029053,62471.0,62470.0,0.023]
[1724761847223,0.0029053,62471.0,62469.0,0.023]
[1724761847687,0.1629803,62471.0,62469.0,0.023]
[1724761847915,0.1619803,62471.0,62467.0,0.183083]
[1724761848132,0.0019053,62471.0,62468.0,0.160081]
[1724761848348,0.0029053,62471.0,62470.0,0.008]
[1724761850423,0.0019053,62471.0,62470.0,0.828382]
[1724761851306,0.0029053,62471.0,62470.0,0.836382]
[1724761851528,0.0029053,62471.0,62470.0,0.516229]
[1724761852175,0.0029053,62471.0,62470.0,0.196076]
[1724761852420,0.0029053,62471.0,62470.0,0.036]
[1724761852653,0.0029053,62471.0,62470.0,0.196076]
[1724761852885,0.0029053,62471.0,62470.0,0.036]
[1724761853570,0.0029053,62471.0,62470.0,0.196076]
[1724761854749,0.0029053,62471.0,62470.0,0.516229]
[1724761854996,0.0029053,62471.0,62470.0,0.196076]
[1724761855705,0.0029053,62471.0,62470.0,0.516229]
[1724761856167,0.0029053,62471.0,62470.0,0.592029]
[1724761857557,0.0029053,62471.0,62470.0,0.196076]
[1724761857927,0.0029053,62471.0,62470.0,0.516229]
[1724761859684,0.0029053,62471.0,62470.0,0.836382]
[1724761860368,0.0029053,62471.0,62470.0,0.516229]
[1724761860620,0.0029053,62471.0,62470.0,0.013]
[1724761860621,0.5590273,62471.0,62470.0,0.013]
[1724761860821,1.0807847,62471.0,62470.0,0.013]
[1724761861080,1.7210807,62471.0,62470.0,0.013]
[1724761861300,1.16071996,62464.0,62463.0,0.000823]
[1724761861535,1.62467334,62464.0,62463.0,0.000823]
[1724761861778,2.10377543,62464.0,62463.0,0.000823]
[1724761862429,2.09877543,62464.0,62463.0,0.000823]
[1724761862649,0.98313143,62464.0,62435.0,0.320332]
[1724761862910,0.0803,62440.0,62437.0,0.47675426]
[1724761863109,0.0803,62440.0,62437.0,0.16016]
[1724761863314,0.0803,62440.0,62435.0,0.160165]
[1724761863520,0.240454,62440.0,62436.0,0.160163]
[1724761865327,0.241454,62440.0,62436.0,0.167163]
[1724761865566,0.241454,62440.0,62437.0,0.023]
[1724761865767,0.0813,62440.0,62437.0,0.023]
[1724761865977,0.160158,62438.0,62437.0,0.023]
[1724761866182,0.0823,62440.0,62437.0,0.00038479]
[1724761866508,0.480483,62437.0,62436.0,0.007]
[1724761866937,0.480483,62437.0,62436.0,0.00738479]
[1724761867579,0.480483,62437.0,62436.0,0.007]
[1724761867831,0.16017,62434.0,62433.0,0.00038479]
[1724761868016,0.480508,62434.0,62433.0,0.00038479]
[1724761868610,0.800846,62434.0,62433.0,0.00038479]
[1724761868808,0.160174,62432.0,62431.0,0.00160779]
[1724761869009,0.480522,62432.0,62431.0,0.00160779]
[1724761869183,0.480522,62432.0,62431.0,0.001223]
[1724761869184,0.51716833,62432.0,62431.0,0.001223]
[1724761869391,0.97331633,62432.0,62431.0,0.001223]
[1724761869805,1.0211886,62432.0,62431.0,0.001223]
[1724761870011,1.0221886,62432.0,62431.0,0.001223]
[1724761870488,1.3425366,62432.0,62431.0,0.001223]
[1724761871114,1.4425366,62432.0,62431.0,0.001223]
[1724761871743,1.4445366,62432.0,62431.0,0.001223]
[1724761871958,1.7678846,62432.0,62431.0,0.001223]
[1724761872169,1.4475366,62432.0,62431.0,0.001223]
[1724761872399,2.1475366,62432.0,62431.0,0.001223]
[1724761872644,2.4678846,62432.0,62431.0,0.001223]
[1724761873398,2.4648846,62432.0,62431.0,0.001223]
[1724761873626,2.47449981,62432.0,62431.0,0.001223]
[1724761874723,2.47149981,62432.0,62431.0,0.001223]
[1724761874939,2.47049981,62432.0,62431.0,0.001223]
[1724761875374,2.48449981,62432.0,62431.0,0.001223]
[1724761875601,2.47749981,62432.0,62431.0,0.001223]
[1724761875807,2.49149981,62432.0,62431.0,0.001223]
[1724761876446,2.50806544,62432.0,62431.0,0.001223]
[1724761877780,2.18610223,62432.0,62431.0,0.001223]
[1724761878219,2.08758363,62432.0,62431.0,0.001223]
[1724761878430,1.40158363,62432.0,62431.0,0.001223]
[1724761878643,1.38758363,62432.0,62431.0,0.001223]
[1724761879071,1.06723563,62432.0,62431.0,0.001223]
[1724761879547,0.76088763,62432.0,62431.0,0.001223]
[1724761879752,0.77188763,62432.0,62431.0,0.001223]
[1724761879956,0.94243563,62432.0,62431.0,0.001223]
[1724761881512,0.95343563,62432.0,62431.0,0.001223]
[1724761881729,0.92843563,62432.0,62431.0,0.001223]
[1724761881949,0.99943813,62432.0,62431.0,0.001223]
[1724761882227,0.02975836,62432.0,62431.0,0.001223]
[1724761882464,0.18093236,62432.0,62431.0,0.001223]
[1724761882890,0.17693236,62432.0,62431.0,0.001223]
[1724761883349,0.18893236,62432.0,62431.0,0.001223]
[1724761883559,0.19993236,62432.0,62431.0,0.001223]
[1724761883781,0.02775836,62432.0,62431.0,0.001223]
[1724761883996,0.02775836,62432.0,62431.0,0.481752]
[1724761883997,0.011,62432.0,62431.0,0.481752]
[1724761884214,0.011,62432.0,62431.0,0.825105]
[1724761884434,0.011,62432.0,62431.0,0.504752]
[1724761884877,0.160159,62438.0,62434.0,0.160168]
[1724761885092,0.160155,62440.0,62436.0,0.157162]
[1724761885310,0.320302,62441.0,62433.0,0.320342]
[1724761885520,0.160161,62437.0,62434.0,0.023]
[1724761885759,0.160164,62436.0,62434.0,0.023]
[1724761886005,0.480499,62435.0,62434.0,0.023]
[1724761886219,0.160166,62435.0,62434.0,0.023]
[1724761886435,0.160166,62435.0,62432.0,0.183173]
[1724761886671,0.160166,62435.0,62432.0,0.023]
[1724761886874,0.160166,62435.0,62431.0,0.161398]
[1724761887099,0.160169,62434.0,62432.0,0.023]
[1724761888173,0.16017,62434.0,62431.0,0.001223]
[1724761888585,0.320338,62434.0,62431.0,0.001223]
[1724761888836,0.160172,62433.0,62431.0,0.001223]
[1724761889053,0.160174,62432.0,62431.0,0.024223]
[1724761890093,0.160174,62432.0,62431.0,0.001223]
[1724761890304,0.160171,62434.0,62431.0,0.161399]
[1724761890515,0.320297,62442.0,62432.0,0.023]
[1724761890741,0.320297,62442.0,62438.0,0.160157]
[1724761890742,0.16015,62442.0,62438.0,0.160157]
[1724761890940,0.1387,62449.0,62437.0,0.320319]
[1724761890941,0.160153,62440.0,62439.0,0.023]
[1724761891351,0.160156,62439.0,62438.0,0.023]
[1724761891557,0.33705036,62443.0,62438.0,0.023]
[1724761891558,0.160154,62440.0,62438.0,0.023]
[1724761891766,0.160156,62439.0,62438.0,0.023]
[1724761891978,0.160153,62441.0,62437.0,0.023]
[1724761892187,0.005,62442.0,62435.0,0.320329]
[1724761892402,0.005,62442.0,62436.0,0.023]
[1724761892606,0.165149,62442.0,62438.0,0.320317]
[1724761892812,0.001,62439.0,62438.0,0.320317]
[1724761893027,0.001,62439.0,62438.0,0.503474]
[1724761893229,0.160151,62441.0,62438.0,0.183157]
[1724761893455,0.160151,62441.0,62439.0,0.023]
[1724761893656,0.164149,62442.0,62439.0,0.023]
[1724761894479,0.0049053,62442.0,62441.0,0.160151]
[1724761894690,0.0049053,62442.0,62441.0,0.823755]
[1724761894910,0.0049053,62442.0,62441.0,0.904255]
[1724761894911,0.0009053,62442.0,62441.0,0.904255]
[1724761896099,0.0009053,62442.0,62441.0,0.964955]
[1724761896323,0.0009053,62442.0,62441.0,1.289257]
[1724761896538,0.0009053,62442.0,62441.0,1.44817509]
[1724761896755,0.0009053,62442.0,62441.0,1.66823505]
[1724761896962,0.0009053,62442.0,62441.0,1.44817509]
[1724761897395,0.0009053,62442.0,62441.0,0.908255]
[1724761898243,0.0009053,62442.0,62441.0,0.904255]
[1724761898458,0.0019053,62442.0,62441.0,0.904255]
[1724761898669,0.0009053,62442.0,62441.0,0.907255]
[1724761898890,0.0009053,62442.0,62441.0,0.506453]
[1724761899101,0.0019053,62442.0,62441.0,0.826755]
[1724761899303,0.0009053,62442.0,62441.0,0.823755]
[1724761899509,0.0019053,62442.0,62441.0,0.823755]
[1724761899935,0.0009053,62442.0,62441.0,0.823755]
[1724761900056,0.0019053,62442.0,62441.0,0.832755]
[1724761900505,0.0019053,62442.0,62441.0,0.512453]
[1724761901350,0.0029053,62442.0,62441.0,0.512453]
[1724761901562,0.0019053,62442.0,62441.0,0.503453]
[1724761901762,0.0019053,62442.0,62441.0,0.183151]
[1724761901938,0.0019053,62442.0,62441.0,0.512453]
[1724761901939,0.0029053,62442.0,62441.0,0.512453]
[1724761902681,0.0009053,62442.0,62441.0,0.183151]
[1724761902916,0.0019053,62442.0,62441.0,0.183151]
[1724761903130,0.0029053,62442.0,62441.0,0.192151]
[1724761903821,0.0029053,62442.0,62441.0,0.512453]
[1724761904440,0.0029053,62442.0,62441.0,0.589353]
[1724761906434,0.0029053,62442.0,62441.0,0.909655]
[1724761906652,0.0029053,62442.0,62441.0,1.06857309]
[1724761906863,0.0029053,62442.0,62441.0,1.38887509]
[1724761907763,0.0029053,62442.0,62441.0,1.77047709]
[1724761909070,0.0029053,62442.0,62441.0,1.45017509]
[1724761909291,0.0019053,62442.0,62441.0,1.153057]
[1724761909506,0.0029053,62442.0,62441.0,0.832755]
[1724761909721,0.0019053,62442.0,62441.0,0.823755]
[1724761910210,0.0029053,62442.0,62441.0,0.832755]
[1724761910630,0.0029053,62442.0,62441.0,0.823755]
[1724761910631,0.0019053,62442.0,62441.0,0.823755]
[1724761911054,0.0009053,62442.0,62441.0,0.823755]
[1724761911269,0.0009053,62442.0,62441.0,0.828755]
[1724761911539,0.0019053,62442.0,62441.0,0.828755]
[1724761912398,0.0029053,62442.0,62441.0,0.840755]
[1724761912836,0.0029053,62442.0,62441.0,0.99967309]
[1724761913265,0.0029053,62442.0,62441.0,1.39737509]
[1724761914396,0.0029053,62442.0,62441.0,1.45797509]
[1724761915301,0.0029053,62442.0,62441.0,1.67803505]
[1724761921615,0.0029053,62442.0,62441.0,1.61743505]
[1724761921886,0.0029053,62442.0,62441.0,1.54003505]
[1724761926830,0.0029053,62442.0,62441.0,1.54945393]
[1724761927653,0.0029053,62442.0,62441.0,1.86975593]
[1724761928069,0.0029053,62442.0,62441.0,1.95065593]
[1724761928482,0.0029053,62442.0,62441.0,1.96803275]
[1724761928917,0.0029053,62442.0,62441.0,1.64773075]
[1724761930959,0.0029053,62442.0,62441.0,1.63035393]
[1724761931171,0.0029053,62442.0,62441.0,1.64773064]
[1724761931589,0.0029053,62442.0,62441.0,1.3373518]
[1724761932044,0.1496053,62442.0,62441.0,0.177151]
[1724761932268,0.1496053,62442.0,62441.0,0.017]
[1724761932482,0.69305283,62442.0,62441.0,0.017]
[1724761932701,0.6300503,62442.0,62441.0,0.017]
[1724761932922,0.9503473,62442.0,62441.0,0.017]
[1724761933358,0.9503473,62442.0,62441.0,0.005]
[1724761933359,0.9493473,62442.0,62441.0,0.005]
[1724761933590,1.07631053,62442.0,62441.0,0.005]
[1724761933801,1.2706443,62442.0,62441.0,0.016]
[1724761934439,0.9503473,62442.0,62441.0,0.016]
[1724761935134,0.9493473,62442.0,62441.0,0.011]
[1724761935578,0.9503473,62442.0,62441.0,0.016]
[1724761935783,0.9493473,62442.0,62441.0,0.011]
[1724761935994,0.1461,62436.0,62435.0,0.000823]
[1724761937248,0.1461,62436.0,62435.0,0.003823]
[1724761937437,0.1461,62436.0,62435.0,0.026823]
[1724761938627,0.1461,62436.0,62435.0,0.029823]
[1724761941223,0.1461,62436.0,62435.0,0.029523]
[1724761942162,0.306264,62436.0,62435.0,0.029523]
[1724761942878,0.306264,62436.0,62435.0,0.026523]
[1724761943100,0.306264,62436.0,62435.0,0.023523]
[1724761943335,0.306264,62436.0,62435.0,0.000523]
[1724761943336,0.1461,62436.0,62435.0,0.000523]
[1724761943576,0.626592,62436.0,62435.0,0.023523]
[1724761943818,0.306264,62436.0,62435.0,0.023523]
[1724761944075,0.30621133,62436.0,62435.0,0.023523]
[1724761944320,0.30621133,62436.0,62435.0,0.024523]
[1724761945023,0.30621133,62436.0,62435.0,0.025523]
[1724761945267,0.30621133,62436.0,62435.0,0.024523]